bitfinex-derivatives/quotes_SOLF0:USTF0_20241025
["timestamp","ask_amount","ask_price","bid_price","bid_amount"]
[1729879219655,37.15519531,167.66,167.54,37.15519531]
[1729879219857,2.9844,167.65,167.57,37.15519531]
[1729879220045,37.15519531,167.69,167.57,37.15519531]
[1729879220243,7.1903,167.77,167.53,2.5814]
[1729879220244,37.15519531,167.75,167.63,37.15519531]
[1729879220752,37.15519531,167.78,167.63,37.15519531]
[1729879220952,37.15519531,167.78,167.64,2.5145]
[1729879221148,37.15519531,167.72,167.59,2.9854]
[1729879221354,37.15519531,167.72,167.52,37.15519531]
[1729879221355,37.15519531,167.72,167.6,37.15519531]
[1729879221945,37.15519531,167.75,167.6,37.15519531]
[1729879222148,37.15519531,167.75,167.61,1.2247]
[1729879222351,37.15519531,167.75,167.5,64.44]
[1729879222352,343.0,167.79,166.95,575.0]
[1729879222554,37.15519531,167.57,167.42,37.15519531]
[1729879222852,37.15519531,167.57,167.35,37.15519531]
[1729879222853,2.9858,167.57,167.46,2.9877]
[1729879223042,82.38,167.73,167.43,2.5151]
[1729879223043,37.15519531,167.65,167.51,37.15519531]
[1729879223248,37.15519531,167.62,167.48,37.15519531]
[1729879223753,37.15519531,167.59,167.45,37.15519531]
[1729879223948,37.15519531,167.57,167.43,39.67029531]
[1729879224454,37.15519531,167.57,167.43,2.5151]
[1729879225157,37.15519531,167.54,167.43,2.5151]
[1729879225662,2.9871,167.51,167.43,5.5036]
[1729879225858,37.15519531,167.54,167.43,2.5151]
[1729879226459,37.15519531,167.66,167.49,37.15519531]
[1729879226655,2.9849,167.64,167.55,2.9863]
[1729879226850,37.15519531,167.7,167.56,2.519]
[1729879227056,37.15519531,167.66,167.56,2.519]
[1729879227252,37.15519531,167.78,167.56,2.519]
[1729879227253,37.15519531,167.64,167.56,2.519]
[1729879227853,37.15519531,167.61,167.46,1.2282]
[1729879228056,37.15519531,167.55,167.47,2.5634]
[1729879228261,37.15519531,167.58,167.47,2.5634]
[1729879228460,2.9859,167.58,167.51,2.9871]
[1729879228661,37.15519531,167.64,167.51,37.15519531]
[1729879229164,2.9853,167.61,167.54,2.9864]
[1729879229354,37.15519531,167.67,167.53,37.15519531]
[1729879229759,347.59618,167.67,167.59,2.9855]
[1729879229949,347.59618,167.67,167.6,2.4892]
[1729879229950,344.61178,167.67,167.6,2.4892]
[1729879230464,342.62248,167.67,167.61,37.15519531]
[1729879231267,342.62248,167.67,167.6,2.4892]
[1729879231563,342.62248,167.67,167.6,1.2771]
[1729879231764,2.9856,167.63,167.6,1.2771]
[1729879232075,342.62248,167.67,167.53,37.15519531]
[1729879232270,342.62248,167.67,167.55,37.15519531]
[1729879232763,342.62248,167.67,167.54,1.2083]
[1729879232764,379.77767531,167.67,167.54,1.2083]
[1729879233064,37.15519531,167.64,167.54,1.2083]
[1729879233263,2.9852,167.66,167.57,2.9865]
[1729879233457,379.77767531,167.67,167.54,1.2083]
[1729879234674,342.62248,167.67,167.58,37.15519531]
[1729879234968,342.62248,167.67,167.6,37.15519531]
[1729879235156,342.62248,167.67,167.63,37.15519531]
[1729879235360,340.63298,167.67,167.66,2.985]
[1729879235758,340.63298,167.67,167.53,38.41999531]
[1729879235963,340.63298,167.67,167.57,37.15519531]
[1729879236164,340.63298,167.67,167.58,1.2679]
[1729879236961,340.63298,167.67,167.61,2.9858]
[1729879237161,340.63298,167.67,167.58,1.2679]
[1729879237359,340.63298,167.67,167.59,37.15519531]
[1729879237674,204.14617956,167.67,167.66,2.985]
[1729879237970,174.86696752,167.67,167.66,2.985]
[1729879238162,115.44467802,167.67,167.66,40.14019531]
[1729879238364,104.79477802,167.67,167.66,40.14019531]
[1729879238568,100.63687802,167.67,167.66,40.14019531]
[1729879238784,95.89337802,167.67,167.66,40.14019531]
[1729879239070,92.31807802,167.67,167.66,40.14019531]
[1729879239471,92.31807802,167.67,167.66,2.985]
[1729879240767,92.31807802,167.67,167.66,40.14019531]
[1729879240768,62.53057229,167.67,167.66,40.14019531]
[1729879241073,1.2916,167.83,167.66,40.14019531]
[1729879241074,1.2916,167.83,167.66,37.15519531]
[1729879241262,1.2916,167.83,167.71,37.15519531]
[1729879241458,2.9823,167.82,167.75,2.9832]
[1729879241870,2.9827,167.81,167.71,37.15519531]
[1729879242076,37.15519531,167.79,167.62,37.15519531]
[1729879242468,37.15519531,167.79,167.65,37.15519531]
[1729879243074,37.15519531,167.76,167.65,2.9855]
[1729879243276,37.15519531,167.79,167.62,37.15519531]
[1729879243469,2.9833,167.78,167.69,37.15519531]
[1729879243671,1.2916,167.83,167.73,2.984]
[1729879243870,1.2916,167.83,167.69,37.15519531]
[1729879244061,2.984,167.74,167.66,37.15519531]
[1729879244263,37.15519531,167.78,167.66,2.9853]
[1729879244463,37.15519531,167.81,167.62,37.15519531]
[1729879244675,37.15519531,167.81,167.68,37.15519531]
[1729879245097,2.9835,167.78,167.68,37.15519531]
[1729879245370,37.15519531,167.71,167.37,183.35772113]
[1729879245573,37.15519531,167.76,167.54,37.15519531]
[1729879245574,37.15519531,167.68,167.54,37.15519531]
[1729879245776,2.9855,167.66,167.54,37.15519531]
[1729879245981,2.9855,167.66,167.6,2.9864]
[1729879246275,37.15519531,167.68,167.54,37.15519531]
[1729879246474,37.15519531,167.68,167.61,2.9862]
[1729879246675,37.15519531,167.68,167.46,5.9778]
[1729879246676,2.5077,167.7,167.57,37.15519531]
[1729879246872,2.5077,167.7,167.6,37.15519531]
[1729879247175,2.5077,167.7,167.57,37.15519531]
[1729879247476,2.9854,167.67,167.57,37.15519531]
[1729879247671,2.5077,167.7,167.6,37.15519531]
[1729879248075,2.5077,167.7,167.65,2.9856]
[1729879248377,2.9853,167.67,167.57,37.15519531]
[1729879249473,2.5077,167.7,167.57,37.15519531]
[1729879250277,37.15519531,167.78,167.65,37.15519531]
[1729879250475,2.9844,167.73,167.65,37.15519531]
[1729879250779,37.15519531,167.66,167.46,64.44]
[1729879250974,2.5402,167.65,167.53,37.15519531]
[1729879251565,2.5402,167.65,167.62,2.986]
[1729879251763,2.5402,167.65,167.53,37.15519531]
[1729879253372,2.5402,167.65,167.5,37.15519531]
[1729879253570,37.15519531,167.63,167.5,37.15519531]
[1729879253778,40.14119531,167.63,167.57,2.9869]
[1729879253974,40.14119531,167.63,167.5,37.15519531]
[1729879254170,37.15519531,167.63,167.5,37.15519531]
[1729879254378,2.5402,167.65,167.54,37.15519531]
[1729879254572,2.5402,167.65,167.56,37.15519531]
[1729879254776,39.69539531,167.65,167.51,37.15519531]
[1729879255278,2.9862,167.63,167.51,37.15519531]
[1729879255576,2.9866,167.6,167.56,2.9872]
[1729879255770,39.69539531,167.65,167.51,37.15519531]
[1729879255970,37.15519531,167.62,167.48,37.15519531]
[1729879256273,2.9866,167.6,167.56,2.9872]
[1729879256572,39.69539531,167.65,167.51,37.15519531]
[1729879256781,2.9863,167.62,167.58,2.9869]
[1729879257074,39.69539531,167.65,167.51,37.15519531]
[1729879257278,2.9863,167.62,167.51,37.15519531]
[1729879257474,2.9863,167.62,167.46,64.44]
[1729879257475,37.15519531,167.59,167.46,64.44]
[1729879257671,2.5402,167.65,167.33,8.9738]
[1729879257672,2.9871,167.58,167.43,37.15519531]
[1729879257866,37.15519531,167.59,167.43,37.15519531]
[1729879258067,37.15519531,167.56,167.41,37.15519531]
[1729879258274,37.15519531,167.51,167.33,64.46]
[1729879258583,37.15519531,167.48,167.35,37.15519531]
[1729879258885,37.15519531,167.51,167.35,37.15519531]
[1729879258886,1.2644,167.5,167.35,37.15519531]
[1729879259281,2.9887,167.49,167.43,2.9897]
[1729879259474,2.5169,167.55,167.41,37.15519531]
[1729879259972,2.9881,167.53,167.47,2.989]
[1729879260277,2.5169,167.55,167.44,37.15519531]
[1729879260480,2.5169,167.55,167.35,55.09519531]
[1729879260481,2.5169,167.55,167.46,37.15519531]
[1729879260676,2.5169,167.55,167.44,37.15519531]
[1729879260881,2.9885,167.52,167.45,2.9897]
[1729879261177,39.67209531,167.55,167.33,64.46]
[1729879261372,39.67209531,167.55,167.39,37.15519531]
[1729879261581,2.5169,167.55,167.44,37.15519531]
[1729879261768,37.15519531,167.52,167.33,64.46]
[1729879261970,37.15519531,167.49,167.33,101.61519531]
[1729879262172,1.3127,167.48,167.33,101.61519531]
[1729879262372,37.15519531,167.46,167.33,64.46]
[1729879262575,2.5996,167.45,167.33,64.46]
[1729879262782,2.9903,167.44,167.38,2.9911]
[1729879262985,2.5996,167.45,167.33,101.61519531]
[1729879263283,2.5996,167.45,167.4,2.9908]
[1729879263488,2.5996,167.45,167.36,37.15519531]
[1729879263779,37.15519531,167.51,167.33,64.46]
[1729879263780,2.9889,167.51,167.46,2.9897]
[1729879263976,37.15519531,167.55,167.41,37.15519531]
[1729879264374,37.15519531,167.55,167.46,2.9897]
[1729879264375,2.9887,167.52,167.46,2.9897]
[1729879264582,37.15519531,167.55,167.41,37.15519531]
[1729879264979,37.15519531,167.55,167.46,2.9895]
[1729879265169,37.15519531,167.52,167.39,37.15519531]
[1729879265374,2.9894,167.48,167.4,2.9906]
[1729879265573,3.8229,167.51,167.36,37.15519531]
[1729879266072,2.9891,167.48,167.36,37.15519531]
[1729879266281,37.15519531,167.49,167.36,37.15519531]
[1729879266576,37.15519531,167.49,167.41,2.9903]
[1729879266782,3.8229,167.51,167.36,37.15519531]
[1729879267081,2.9888,167.5,167.44,2.9897]
[1729879267385,3.8229,167.51,167.42,37.15519531]
[1729879267570,37.15519531,167.63,167.53,2.9881]
[1729879267770,2.5536,167.61,167.51,37.15519531]
[1729879268384,2.5536,167.61,167.57,37.15519531]
[1729879268577,2.5536,167.69,167.46,82.44]
[1729879268777,2.5536,167.69,167.58,37.15519531]
[1729879269079,2.5536,167.69,167.56,37.15519531]
[1729879269385,37.15519531,167.63,167.5,37.15519531]
[1729879269883,37.15519531,167.63,167.47,37.15519531]
[1729879270187,37.15519531,167.6,167.47,37.15519531]
[1729879270483,2.9875,167.56,167.49,2.9885]
[1729879270687,3.8988,167.59,167.47,37.15519531]
[1729879270889,407.5,167.8,167.52,37.15519531]
[1729879271090,37.15519531,167.68,167.52,37.15519531]
[1729879271287,2.5725,167.67,167.52,37.15519531]
[1729879271479,2.5725,167.67,167.39,5.9804]
[1729879271480,2.9873,167.56,167.45,2.9892]
[1729879271675,37.15519531,167.56,167.41,37.15519531]
[1729879272790,38.48149531,167.59,167.44,37.15519531]
[1729879273089,2.9873,167.57,167.48,2.9886]
[1729879273287,2.9873,167.57,167.44,37.15519531]
[1729879273288,38.48149531,167.59,167.44,37.15519531]
[1729879273588,1.3263,167.59,167.47,37.15519531]
[1729879273784,2.9871,167.58,167.52,2.988]
[1729879274290,2.5725,167.67,167.52,37.15519531]
[1729879274484,1.3058,167.66,167.55,37.15519531]
[1729879274680,1.3058,167.66,167.58,37.15519531]
[1729879274881,1.2462,167.67,167.61,37.15519531]
[1729879275187,1.3058,167.72,167.64,37.15519531]
[1729879275489,1.3058,167.72,167.66,37.15519531]
[1729879275684,2.436,167.79,167.66,37.15519531]
[1729879276082,2.9836,167.77,167.71,2.9845]
[1729879276288,2.436,167.79,167.66,37.15519531]
[1729879276489,37.15519531,167.75,167.63,37.15519531]
[1729879276891,37.15519531,167.67,167.41,82.4]
[1729879277081,37.15519531,167.64,167.47,37.15519531]
[1729879277582,2.9869,167.59,167.51,2.988]
[1729879277787,1.3224,167.63,167.51,2.988]
[1729879277988,1.3224,167.63,167.47,37.15519531]
[1729879278182,1.3224,167.63,167.49,2.9884]
[1729879278392,37.15519531,167.61,167.44,37.15519531]
[1729879278590,37.15519531,167.57,167.11,14.9759]
[1729879278797,2.515,167.56,167.42,37.15519531]
[1729879279298,2.515,167.56,167.39,37.15519531]
[1729879279299,37.15519531,167.54,167.39,37.15519531]
[1729879279603,37.15519531,167.51,167.35,37.15519531]
[1729879279988,37.15519531,167.53,167.27,37.15519531]
[1729879279989,37.15519531,167.53,167.38,37.15519531]
[1729879280492,37.15519531,167.49,167.35,37.15519531]
[1729879280999,37.15519531,167.49,167.37,2.9903]
[1729879281197,37.15519531,167.46,167.32,37.15519531]
[1729879281398,2.5736,167.45,167.32,37.15519531]
[1729879281796,2.5736,167.45,167.35,37.15519531]
[1729879281996,2.5736,167.45,167.35,40.14589531]
[1729879282203,2.5736,167.45,167.35,37.15519531]
[1729879282399,39.72879531,167.45,167.26,64.48]
[1729879282597,39.72879531,167.45,167.3,37.15519531]
[1729879283001,37.15519531,167.4,167.26,64.48]
[1729879283299,37.15519531,167.4,167.28,2.9921]
[1729879283495,37.15519531,167.4,167.26,64.48]
[1729879283698,37.15519531,167.34,167.05,64.52]
[1729879283901,2.4515,167.33,167.19,37.15519531]
[1729879284203,37.15519531,167.22,166.9,64.52]
[1729879284404,37.15519531,167.28,166.9,64.52]
[1729879284405,37.15519531,167.19,167.05,37.15519531]
[1729879284894,1.1973,167.21,167.08,37.15519531]
[1729879285089,1.1973,167.21,167.11,37.15519531]
[1729879285502,1.1973,167.21,167.08,37.15519531]
[1729879285907,2.4021,167.21,167.08,37.15519531]
[1729879286402,2.4021,167.21,167.04,64.52]
[1729879286604,2.4021,167.21,167.06,37.15519531]
[1729879286811,37.15519531,167.16,166.93,64.56]
[1729879287106,37.15519531,167.19,167.05,37.15519531]
[1729879287301,37.15519531,167.19,166.93,101.71519531]
[1729879287302,37.15519531,167.13,166.93,64.56]
[1729879287507,37.15519531,167.13,167.01,2.9969]
[1729879287508,2.9953,167.11,167.01,2.9969]
[1729879287809,37.15519531,167.13,166.99,37.15519531]
[1729879288001,2.995,167.12,166.99,37.15519531]
[1729879288306,2.995,167.12,166.93,101.71519531]
[1729879288307,37.15519531,167.16,167.02,37.15519531]
[1729879288599,37.15519531,167.18,167.05,2.9965]
[1729879288804,37.15519531,167.16,166.99,37.15519531]
[1729879289009,37.15519531,167.13,166.99,37.15519531]
[1729879289404,37.15519531,167.13,166.8,9.01737845]
[1729879289604,2.9962,167.07,166.98,2.9978]
[1729879289999,2.9962,167.07,166.95,37.15519531]
[1729879290208,37.15519531,167.09,166.95,37.15519531]
[1729879290396,37.15519531,167.07,166.91,37.15519531]
[1729879291104,2.5687,167.08,166.94,37.15519531]
[1729879291301,37.15519531,167.17,167.0,37.15519531]
[1729879291501,37.15519531,167.17,167.01,37.15519531]
[1729879291705,37.15519531,167.15,167.01,37.15519531]
[1729879291903,2.9956,167.1,166.99,2.9975]
[1729879292226,37.15519531,167.15,166.98,37.15519531]
[1729879292397,37.15519531,167.15,167.01,37.15519531]
[1729879292995,37.15519531,167.12,166.98,40.15279531]
[1729879293201,37.15519531,167.12,166.98,37.15519531]
[1729879293396,2.9957,167.1,167.02,2.997]
[1729879293596,37.15519531,167.1,166.96,37.15519531]
[1729879294197,37.15519531,167.1,166.86,64.62]
[1729879294408,37.15519531,167.07,166.92,37.15519531]
[1729879294612,1.3067,167.06,166.86,64.62]
[1729879294912,37.15519531,167.01,166.87,37.15519531]
[1729879295418,37.15519531,166.95,166.49,575.0]
[1729879295704,37.15519531,166.95,166.78,37.15519531]
[1729879295905,37.15519531,166.92,166.64,2.96691053]
[1729879296205,37.15519531,166.89,166.61,3.05743457]
[1729879296508,2.4295,166.91,166.8,37.15519531]
[1729879296706,2.4295,166.91,166.86,37.15519531]
[1729879296903,1.2881,167.02,166.86,37.15519531]
[1729879297098,1.2143,166.99,166.86,37.15519531]
[1729879297294,1.2143,166.99,166.77,37.15519531]
[1729879297295,37.15519531,166.96,166.82,37.15519531]
[1729879297503,37.15519531,166.91,166.76,37.15519531]
[1729879297699,2.9999,166.87,166.68,101.79519531]
[1729879297907,1.2106,166.9,166.79,37.15519531]
[1729879298504,37.15519531,166.97,166.82,37.15519531]
[1729879298900,2.9993,166.9,166.82,40.15569531]
[1729879299099,37.15519531,166.97,166.82,40.15569531]
[1729879299297,37.15519531,166.97,166.77,37.15519531]
[1729879299298,37.15519531,166.92,166.77,37.15519531]
[1729879299499,1.2106,166.98,166.73,37.15519531]
[1729879299500,37.15519531,166.88,166.73,37.15519531]
[1729879299716,37.15519531,166.88,166.43,575.0]
[1729879299717,37.15519531,166.85,166.51,6.0123]
[1729879300011,1.3162,166.84,166.51,70.6923]
[1729879300204,37.15519531,166.81,166.67,37.15519531]
[1729879300403,1.3162,166.84,166.7,37.15519531]
[1729879300707,1.3162,166.84,166.75,37.15519531]
[1729879301305,37.15519531,167.0,166.81,37.15519531]
[1729879301514,1.2944,166.97,166.85,37.15519531]
[1729879301810,1.2944,166.97,166.88,37.15519531]
[1729879302208,37.15519531,166.94,166.59,257.7096]
[1729879302411,37.15519531,166.94,166.79,37.15519531]
[1729879302714,1.2944,166.97,166.85,37.15519531]
[1729879302907,38.44959531,166.97,166.66,64.72]
[1729879303101,2.9987,166.93,166.82,40.15579531]
[1729879303300,2.9987,166.93,166.77,37.15519531]
[1729879303301,1.2944,166.97,166.88,37.15519531]
[1729879303500,1.2944,166.97,166.8,64.72]
[1729879303702,1.2944,166.97,166.86,37.15519531]
[1729879303907,1.3162,166.99,166.86,37.15519531]
[1729879304109,1.3162,166.99,166.88,37.15519531]
[1729879304507,2.9983,166.95,166.89,2.9994]
[1729879304809,1.3162,166.99,166.89,2.9994]
[1729879305010,37.15519531,166.97,166.83,37.15519531]
[1729879305318,37.15519531,166.94,166.8,37.15519531]
[1729879305498,2.9997,166.88,166.83,3.0004]
[1729879305814,37.15519531,166.94,166.8,37.15519531]
[1729879306003,2.9985,166.94,166.84,40.15539531]
[1729879306308,1.3162,166.99,166.73,64.72]
[1729879306309,37.15519531,166.92,166.8,37.15519531]
[1729879306513,37.15519531,166.98,166.83,37.15519531]
[1729879306702,1.3162,166.99,166.88,37.15519531]
[1729879306904,1.3162,166.99,166.91,37.15519531]
[1729879307123,1.3162,166.99,166.85,37.15519531]
[1729879307304,1.2478,167.01,166.96,37.15519531]
[1729879307702,1.2478,167.01,166.93,37.15519531]
[1729879307910,1.2478,167.01,166.86,64.74]
[1729879308111,2.9979,166.97,166.94,37.15519531]
[1729879308319,1.2478,167.01,166.94,37.15519531]
[1729879308611,2.9975,166.99,166.96,37.15519531]
[1729879308810,1.2478,167.01,166.86,64.74]
[1729879309017,1.2478,167.01,166.87,37.15519531]
[1729879309213,2.9982,166.96,166.86,64.74]
[1729879309410,37.15519531,166.99,166.85,37.15519531]
[1729879309617,1.2354,166.98,166.85,37.15519531]
[1729879309816,37.15519531,166.97,166.82,37.15519531]
[1729879310312,37.15519531,166.93,166.77,37.15519531]
[1729879310702,3.0005,166.82,166.77,40.15649531]
[1729879311015,37.15519531,166.93,166.8,37.15519531]
[1729879311314,37.15519531,166.9,166.77,37.15519531]
[1729879311518,5.9955,166.97,166.77,37.15519531]
[1729879311519,1.2334,166.89,166.77,37.15519531]
[1729879311710,1.2334,166.89,166.8,37.15519531]
[1729879312415,2.9998,166.86,166.8,40.15579531]
[1729879312613,1.2334,166.89,166.77,37.15519531]
[1729879312803,3.0002,166.84,166.78,3.001]
[1729879313003,1.2334,166.89,166.8,37.15519531]
[1729879313412,1.2334,166.89,166.77,37.15519531]
[1729879313919,2.9998,166.86,166.78,3.0009]
[1729879314216,1.2334,166.89,166.8,37.15519531]
[1729879314402,2.9993,166.88,166.83,40.15529531]
[1729879314606,1.2027,166.95,166.83,37.15519531]
[1729879314905,2.999,166.9,166.86,37.15519531]
[1729879315109,37.15519531,166.94,166.79,37.15519531]
[1729879315507,3.0,166.85,166.8,3.0007]
[1729879315711,1.2027,166.95,166.81,37.15519531]
[1729879316412,1.2027,166.95,166.77,37.15519531]
[1729879316413,2.9986,166.92,166.84,37.15519531]
[1729879316606,1.2027,166.95,166.88,37.15519531]
[1729879317514,1.2354,166.98,166.88,37.15519531]
[1729879318120,2.9991,166.9,166.85,40.15499531]
[1729879318417,1.2354,166.98,166.85,40.15499531]
[1729879318607,2.9992,166.89,166.85,40.15499531]
[1729879318811,2.9992,166.89,166.85,37.15519531]
[1729879319212,1.2354,166.98,166.85,37.15519531]
[1729879319712,2.9996,166.87,166.82,37.15519531]
[1729879319907,2.9996,166.87,166.79,64.76]
[1729879319908,37.15519531,166.93,166.79,104.91599531]
[1729879320114,37.15519531,166.93,166.79,64.76]
[1729879320313,37.15519531,166.9,166.76,37.15519531]
[1729879320518,1.2046,166.89,166.76,37.15519531]
[1729879320714,2.9995,166.88,166.83,37.15519531]
[1729879321021,38.35979531,166.97,166.83,37.15519531]
[1729879321510,38.35979531,166.97,166.83,40.15539531]
[1729879321714,38.35979531,166.97,166.89,37.15519531]
[1729879321715,1.2046,166.97,166.89,37.15519531]
[1729879322024,1.2046,166.97,166.85,37.15519531]
[1729879322025,37.15519531,167.09,166.94,37.15519531]
[1729879322222,1.2448,167.08,166.97,37.15519531]
[1729879322522,1.2448,167.08,166.86,0.577]
[1729879322523,37.15519531,167.17,167.03,37.15519531]
[1729879322820,1.01349298,167.16,167.12,37.15519531]
[1729879323015,2.9948,167.13,167.12,37.15519531]
[1729879323210,1.3996,167.26,167.12,37.15519531]
[1729879323511,37.15519531,167.19,167.04,37.15519531]
[1729879323919,37.15519531,167.22,167.09,37.15519531]
[1729879324328,37.15519531,167.22,167.04,37.15519531]
[1729879324515,2.9942,167.17,167.04,37.15519531]
[1729879324713,37.15519531,167.22,167.07,37.15519531]
[1729879325420,37.15519531,167.16,166.97,0.577]
[1729879325612,2.9963,167.05,166.98,37.15519531]
[1729879325817,37.15519531,167.14,166.98,37.15519531]
[1729879326125,2.9947,167.14,167.03,37.15519531]
[1729879326421,37.15519531,167.25,167.09,37.15519531]
[1729879326621,2.9936,167.21,167.14,37.15519531]
[1729879326821,37.15519531,167.25,167.1,37.15519531]
[1729879327215,2.8916,167.26,167.1,37.15519531]
[1729879327518,37.15519531,167.16,167.01,37.15519531]
[1729879327720,37.15519531,167.13,167.01,37.15519531]
[1729879328217,2.9967,167.03,166.99,37.15519531]
[1729879328427,1.5119,167.19,166.96,37.15519531]
[1729879328428,37.15519531,167.1,166.96,37.15519531]
[1729879328724,2.9954,167.11,167.04,37.15519531]
[1729879328917,1.4293,167.12,167.04,37.15519531]
[1729879329319,1.4293,167.12,166.93,37.15519531]
[1729879329525,1.4293,167.12,167.01,37.15519531]
[1729879330016,2.9961,167.06,167.01,37.15519531]
[1729879330326,37.15519531,167.1,166.93,37.15519531]
[1729879330522,1.4293,167.12,166.93,37.15519531]
[1729879330523,37.15519531,167.07,166.93,37.15519531]
[1729879330724,37.15519531,167.04,166.88,37.15519531]
[1729879331022,37.15519531,167.02,166.88,37.15519531]
[1729879331221,37.15519531,166.99,166.85,101.87519531]
[1729879331414,37.15519531,167.06,166.91,37.15519531]
[1729879331723,37.15519531,167.08,166.94,37.15519531]
[1729879331923,37.15519531,166.99,166.69,67.72939736]
[1729879332111,37.15519531,166.96,166.79,37.15519531]
[1729879332526,37.15519531,166.99,166.82,37.15519531]
[1729879332922,37.15519531,166.93,166.79,37.15519531]
[1729879333124,2.9992,166.89,166.79,37.15519531]
[1729879333327,37.15519531,166.93,166.79,37.15519531]
[1729879333518,37.15519531,166.96,166.82,37.15519531]
[1729879333921,37.15519531,166.96,166.8,37.15519531]
[1729879334213,2.9987,166.92,166.8,37.15519531]
[1729879334415,37.15519531,166.96,166.8,37.15519531]
[1729879334416,1.4771,166.95,166.8,37.15519531]
[1729879334622,1.4771,166.95,166.83,37.15519531]
[1729879335125,1.4771,166.95,166.69,64.7]
[1729879335319,37.15519531,166.9,166.41,251.74]
[1729879335627,37.15519531,166.93,166.77,37.15519531]
[1729879335820,2.9993,166.89,166.8,37.15519531]
[1729879336031,1.4771,166.95,166.8,37.15519531]
[1729879336428,1.3668,166.97,166.83,37.15519531]
[1729879336728,1.3668,166.97,166.86,37.15519531]
[1729879337228,1.5104,167.03,166.77,37.15519531]
[1729879337431,40.14039531,167.08,166.92,37.15519531]
[1729879338034,2.9966,167.02,166.94,2.9978]
[1729879338224,40.14039531,167.08,166.92,37.15519531]
[1729879338428,40.14039531,167.08,166.87,64.74]
[1729879338429,37.15519531,167.03,166.87,64.74]
[1729879338632,37.15519531,166.98,166.87,64.74]
[1729879339122,2.9978,166.95,166.87,64.74]
[1729879339331,37.15519531,167.01,166.87,64.74]
[1729879339524,1.5104,167.07,166.92,37.15519531]
[1729879339725,1.5104,167.07,166.95,37.15519531]
[1729879340225,2.9961,167.05,166.96,2.9974]
[1729879340535,2.9852,167.08,166.95,37.15519531]
[1729879340735,2.9962,167.04,166.96,2.9974]
[1729879340938,2.9852,167.08,166.98,37.15519531]
[1729879341230,2.9852,167.08,167.01,37.15519531]
[1729879341231,2.9955,167.08,167.01,37.15519531]
[1729879341539,37.15519531,167.13,166.95,37.15519531]
[1729879341728,37.15519531,167.13,166.98,37.15519531]
[1729879342630,37.15519531,167.01,166.74,64.72]
[1729879342826,37.15519531,166.98,166.83,37.15519531]
[1729879343023,2.9187,167.02,166.86,37.15519531]
[1729879343223,2.9187,167.02,166.77,37.15519531]
[1729879343224,2.9187,167.02,166.89,37.15519531]
[1729879343626,2.9979,166.95,166.89,37.15519531]
[1729879343820,2.9187,167.02,166.89,37.15519531]
[1729879344026,2.9187,167.02,166.91,37.15519531]
[1729879344428,37.15519531,166.99,166.83,37.15519531]
[1729879344720,37.15519531,166.97,166.83,37.15519531]
[1729879344926,37.15519531,166.99,166.83,37.15519531]
[1729879345226,37.15519531,166.99,166.85,37.15519531]
[1729879345630,37.15519531,166.99,166.77,37.15519531]
[1729879345631,1.4164,167.01,166.88,37.15519531]
[1729879345835,1.4164,167.01,166.88,40.15399531]
[1729879346131,37.15519531,166.97,166.74,64.72]
[1729879346338,5.994,167.0,166.8,37.15519531]
[1729879346339,37.15519531,166.94,166.8,37.15519531]
[1729879346537,37.15519531,166.94,166.77,37.15519531]
[1729879346927,2.9997,166.84,166.78,3.0006]
[1729879347431,37.15519531,166.94,166.77,37.15519531]
[1729879348141,37.15519531,166.94,166.8,37.15519531]
[1729879348432,37.15519531,166.97,166.83,37.15519531]
[1729879348739,37.15519531,166.94,166.8,37.15519531]
[1729879349038,3.0,166.85,166.8,37.15519531]
[1729879349533,3.0,166.85,166.8,40.15589531]
[1729879350131,37.15519531,166.94,166.8,37.15519531]
[1729879350631,37.15519531,166.94,166.77,37.15519531]
[1729879350632,37.15519531,166.97,166.82,37.15519531]
[1729879350832,37.15519531,167.0,166.85,37.15519531]
[1729879351132,1.4164,167.01,166.88,37.15519531]
[1729879351934,2.9977,166.98,166.88,40.15439531]
[1729879352127,1.4164,167.01,166.88,37.15519531]
[1729879352435,37.15519531,167.0,166.85,37.15519531]
[1729879353237,2.9985,166.93,166.88,2.9991]
[1729879353434,37.15519531,167.0,166.85,37.15519531]
[1729879353635,37.15519531,167.0,166.77,37.15519531]
[1729879353837,37.15519531,166.97,166.81,37.15519531]
[1729879354135,37.15519531,166.94,166.78,37.15519531]
[1729879354339,37.15519531,166.94,166.79,3.0008]